fUSD/lending_fUSD_20260701
["ID","MTS","AMOUNT","RATE_DAILY","PERIOD"]
[426805162,1782843039000,-15085.45,0.00022562,2]
[426805187,1782843039000,-189.60910461,0.00023516,2]
[426805169,1782843039000,-572.2002,0.00023416,7]
[426805171,1782843039000,-169.25728895,0.00023516,2]
[426805173,1782843039000,-168.69566508,0.00023516,2]
[426805170,1782843039000,-170.50932301,0.00023516,2]
[426805172,1782843039000,-176.59566015,0.00023516,2]
[426805168,1782843039000,-422.90696095,0.00023416,7]
[426805174,1782843039000,-167.72044849,0.00023516,2]
[426805176,1782843039000,-268.75535654,0.00023516,2]
[426805184,1782843039000,-292.94553362,0.00023516,2]
[426805185,1782843039000,-168.70765951,0.00023516,2]
[426805182,1782843039000,-169.83318008,0.00023516,2]
[426805183,1782843039000,-252.29390947,0.00023516,2]
[426805190,1782843039000,-161.11009456,0.00023516,2]
[426805186,1782843039000,-171.55910658,0.00023516,2]
[426805181,1782843039000,-180.72875619,0.00023516,2]
[426805179,1782843039000,-166.07241082,0.00023516,2]
[426805178,1782843039000,-222.49197864,0.00023516,2]
[426805175,1782843039000,-156.68418846,0.00023516,2]
[426805177,1782843039000,-239.22588224,0.00023516,2]
[426805180,1782843039000,-219.62168865,0.00023516,2]
[426805262,1782843040000,-375.403953,0.00024886,2]
[426805258,1782843040000,-198.24972647,0.00024769,2]
[426805260,1782843040000,-2337.0,0.0002484,3]
[426805259,1782843040000,-170.0,0.0002484,3]
[426805261,1782843040000,-352.01481464,0.00024886,2]
[426805254,1782843040000,-324.77258471,0.00024769,2]
[426805255,1782843040000,-244.4757832,0.00024769,2]
[426805252,1782843040000,-207.66147991,0.00024769,2]
[426805253,1782843040000,-223.03990936,0.00024769,2]
[426805247,1782843040000,-359.24382286,0.00024769,2]
[426805263,1782843040000,-396.7731498,0.00024886,2]
[426805256,1782843040000,-313.79577235,0.00024769,2]
[426805276,1782843040000,-511.52796902,0.00025604,2]
[426805264,1782843040000,-329.71766577,0.00024886,2]
[426805266,1782843040000,-155.04098898,0.00024967,2]
[426805270,1782843040000,-2000.0,0.00025,7]
[426805267,1782843040000,-3675.97842959,0.00025,2]
[426805268,1782843040000,-173.0,0.00025,2]
[426805271,1782843040000,-500.0,0.00025371,2]
[426805265,1782843040000,-180.34827971,0.00024925,2]
[426805273,1782843040000,-349.74587134,0.00025397,2]
[426805269,1782843040000,-510.41652807,0.00025,2]
[426805272,1782843040000,-379.94579465,0.00025397,2]
[426805274,1782843040000,-389.17011466,0.00025594,2]
[426805286,1782843040000,-241.81210488,0.00025604,2]
[426805249,1782843040000,-199.69462588,0.00024769,2]
[426805257,1782843040000,-192.96864756,0.00024769,2]
[426805246,1782843040000,-218.36435051,0.00024769,2]
[426805236,1782843040000,-158.29619818,0.00024769,2]
[426805248,1782843040000,-407.03753049,0.00024769,2]
[426805277,1782843040000,-507.77186686,0.00025604,2]
[426805220,1782843040000,-184.16,0.00024658,2]
[426805224,1782843040000,-338.5145779,0.00024769,2]
[426805223,1782843040000,-341.01864601,0.00024769,2]
[426805222,1782843040000,-173.52,0.00024658,2]
[426805219,1782843040000,-1000.0,0.00024658,2]
[426805226,1782843040000,-337.39133016,0.00024769,2]
[426805225,1782843040000,-353.19132029,0.00024769,2]
[426805227,1782843040000,-537.51071308,0.00024769,2]
[426805230,1782843040000,-444.98395728,0.00024769,2]
[426805228,1782843040000,-313.36837693,0.00024769,2]
[426805231,1782843040000,-332.14482164,0.00024769,2]
[426805232,1782843040000,-181.92439338,0.00024769,2]
[426805239,1782843040000,-337.41531902,0.00024769,2]
[426805237,1782843040000,-504.58781895,0.00024769,2]
[426805238,1782843040000,-585.89106725,0.00024769,2]
[426805233,1782843040000,-439.24337729,0.00024769,2]
[426805229,1782843040000,-478.45176447,0.00024769,2]
[426805234,1782843040000,-361.45751237,0.00024769,2]
[426805235,1782843040000,-339.66636017,0.00024769,2]
[426805240,1782843040000,-379.21820922,0.00024769,2]
[426805251,1782843040000,-340.44248566,0.00024769,2]
[426805242,1782843040000,-343.11821316,0.00024769,2]
[426805250,1782843040000,-362.35616146,0.00024769,2]
[426805243,1782843040000,-309.66252322,0.00024769,2]
[426805241,1782843040000,-225.35130831,0.00024769,2]
[426805245,1782843040000,-322.22018913,0.00024769,2]
[426805244,1782843040000,-360.1854904,0.00024769,2]
[426805218,1782843040000,-152.0,0.00024538,3]
[426805275,1782843040000,-357.80362346,0.00025604,2]
[426805278,1782843040000,-222.77532419,0.00025604,2]
[426805313,1782843040000,-514.67731975,0.00025604,2]
[426805318,1782843040000,-483.33028369,0.00025604,2]
[426805315,1782843040000,-464.49378483,0.00025604,2]
[426805317,1782843040000,-540.2782356,0.00025604,2]
[426805322,1782843040000,-399.38925175,0.00025604,2]
[426805320,1782843040000,-219.38082657,0.00025604,2]
[426805319,1782843040000,-436.72870103,0.00025604,2]
[426805323,1782843040000,-610.55629574,0.00025604,2]
[426805316,1782843040000,-190.88288657,0.00025604,2]
[426805312,1782843040000,-568.82731384,0.00025604,2]
[426805321,1782843040000,-538.86573429,0.00025604,2]
[426805325,1782843040000,-510.66372849,0.00025604,2]
[426805324,1782843040000,-543.53424219,0.00025604,2]
[426805335,1782843040000,-385.93729513,0.00025604,2]
[426805326,1782843040000,-205.96938935,0.00025604,2]
[426805327,1782843040000,-415.32295982,0.00025604,2]
[426805328,1782843040000,-446.07981873,0.00025604,2]
[426805333,1782843040000,-203.64751897,0.00025604,2]
[426805334,1782843040000,-159.77460004,0.00025604,2]
[426805329,1782843040000,-487.15887707,0.00025604,2]
[426805332,1782843040000,-470.69365852,0.00025604,2]
[426805330,1782843040000,-488.95156639,0.00025604,2]
[426805331,1782843040000,-257.07052831,0.00025604,2]
[426805336,1782843040000,-396.49945294,0.00025604,2]
[426805338,1782843040000,-295.56792002,0.00025724,2]
[426805337,1782843040000,-155.04098883,0.00025713,2]
[426805281,1782843040000,-506.08699523,0.00025604,2]
[426805309,1782843040000,-153.37221337,0.00025604,2]
[426805304,1782843040000,-210.72308864,0.00025604,2]
[426805314,1782843040000,-152.65090083,0.00025604,2]
[426805307,1782843040000,-180.75684066,0.00025604,2]
[426805305,1782843040000,-316.59239636,0.00025604,2]
[426805279,1782843040000,-529.78698044,0.00025604,2]
[426805280,1782843040000,-207.59853883,0.00025604,2]
[426805285,1782843040000,-191.0770232,0.00025604,2]
[426805283,1782843040000,-241.92085371,0.00025604,2]
[426805284,1782843040000,-202.41552063,0.00025604,2]
[426805287,1782843040000,-470.05256539,0.00025604,2]
[426805289,1782843040000,-717.67764671,0.00025604,2]
[426805296,1782843040000,-156.81738704,0.00025604,2]
[426805292,1782843040000,-151.3056983,0.00025604,2]
[426805291,1782843040000,-278.99365433,0.00025604,2]
[426805297,1782843040000,-363.84878676,0.00025604,2]
[426805293,1782843040000,-667.47593592,0.00025604,2]
[426805294,1782843040000,-227.14646136,0.00025604,2]
[426805282,1782843040000,-279.02764679,0.00025604,2]
[426805288,1782843040000,-806.26606963,0.00025604,2]
[426805290,1782843040000,-153.20533043,0.00025604,2]
[426805308,1782843040000,-878.83660087,0.00025604,2]
[426805303,1782843040000,-208.33632084,0.00025604,2]
[426805301,1782843040000,-162.02882278,0.00025604,2]
[426805302,1782843040000,-282.33385619,0.00025604,2]
[426805299,1782843040000,-542.18626856,0.00025604,2]
[426805306,1782843040000,-756.88172842,0.00025604,2]
[426805311,1782843040000,-450.70261661,0.00025604,2]
[426805300,1782843040000,-509.49954025,0.00025604,2]
[426805295,1782843040000,-498.21723246,0.00025604,2]
[426805298,1782843040000,-658.86506594,0.00025604,2]
[426805310,1782843040000,-506.12297853,0.00025604,2]
[426805379,1782843041000,-166.53411534,0.00026161,2]
[426805384,1782843041000,-421.81134063,0.00026161,2]
[426805377,1782843041000,-483.84170742,0.00026161,2]
[426805369,1782843041000,-706.38264059,0.00026161,2]
[426805378,1782843041000,-171.81201913,0.00026161,2]
[426805375,1782843041000,-169.8757325,0.00026161,2]
[426805387,1782843041000,-331.87612719,0.00026161,2]
[426805376,1782843041000,-558.05529358,0.00026161,2]
[426805370,1782843041000,-415.19707765,0.00026161,2]
[426805372,1782843041000,-312.39699457,0.00026161,2]
[426805381,1782843041000,-414.01866052,0.00026161,2]
[426805386,1782843041000,-301.6332283,0.00026161,2]
[426805383,1782843041000,-386.86874385,0.00026161,2]
[426805391,1782843041000,-404.83104126,0.00026161,2]
[426805388,1782843041000,-265.76954164,0.00026161,2]
[426805390,1782843041000,-161.48720874,0.00026161,2]
[426805392,1782843041000,-670.88179398,0.00026161,2]
[426805399,1782843041000,-317.24356466,0.00026161,2]
[426805398,1782843041000,-165.9365237,0.00026161,2]
[426805394,1782843041000,-1075.02142617,0.00026161,2]
[426805397,1782843041000,-306.41066085,0.00026161,2]
[426805393,1782843041000,-626.73675386,0.00026161,2]
[426805389,1782843041000,-369.68389563,0.00026161,2]
[426805396,1782843041000,-165.42124226,0.00026161,2]
[426805395,1782843041000,-956.90352895,0.00026161,2]
[426805368,1782843041000,-222.91719655,0.00026161,2]
[426805385,1782843041000,-350.58697769,0.00026161,2]
[426805371,1782843041000,-396.32887216,0.00026161,2]
[426805401,1782843041000,-214.03828431,0.00026161,2]
[426805373,1782843041000,-674.78266031,0.00026161,2]
[426805350,1782843041000,-1806812.4778063,0.000258,2]
[426805348,1782843041000,-207.98,0.00025725,2]
[426805347,1782843041000,-494.57649865,0.00025724,2]
[426805339,1782843041000,-528.02222196,0.00025724,2]
[426805340,1782843041000,-299.59514079,0.00025724,2]
[426805351,1782843041000,-300.23246267,0.00025899,7]
[426805343,1782843041000,-595.1597247,0.00025724,2]
[426805349,1782843041000,-300.0,0.00025799,10]
[426805341,1782843041000,-563.1059295,0.00025724,2]
[426805342,1782843041000,-244.86408903,0.00025724,2]
[426805345,1782843041000,-208.41608173,0.00025724,2]
[426805352,1782843041000,-1007.88,0.000259,14]
[426805353,1782843041000,-150.0,0.00025984,5]
[426805354,1782843041000,-613.68632601,0.0002599,2]
[426805355,1782843041000,-221.03380664,0.00026,2]
[426805360,1782843041000,-682.03729203,0.00026161,2]
[426805362,1782843041000,-400.88397398,0.00026161,2]
[426805358,1782843041000,-500.0,0.00026132,2]
[426805357,1782843041000,-224.1,0.00026027,7]
[426805359,1782843041000,-536.70543518,0.00026161,2]
[426805361,1782843041000,-356.64676795,0.00026161,2]
[426805356,1782843041000,-681.23,0.00026027,7]
[426805363,1782843041000,-161.7371867,0.00026161,2]
[426805366,1782843041000,-365.07846617,0.00026161,2]
[426805365,1782843041000,-677.02915581,0.00026161,2]
[426805367,1782843041000,-390.82035399,0.00026161,2]
[426805374,1782843041000,-168.92687472,0.00026161,2]
[426805364,1782843041000,-169.30162061,0.00026161,2]
[426805411,1782843041000,-153.4978484,0.00026161,2]
[426805409,1782843041000,-722.91502474,0.00026161,2]
[426805400,1782843041000,-557.98730867,0.00026161,2]
[426805427,1782843041000,-686.23642633,0.00026161,2]
[426805428,1782843041000,-390.38435859,0.00026161,2]
[426805437,1782843041000,-599.08387763,0.00026161,2]
[426805442,1782843041000,-680.88497132,0.00026161,2]
[426805441,1782843041000,-411.93877871,0.00026161,2]
[426805443,1782843041000,-622.98443973,0.00026161,2]
[426805448,1782843041000,-416.67264169,0.00026161,2]
[426805439,1782843041000,-814.07506099,0.00026161,2]
[426805438,1782843041000,-718.48764571,0.00026161,2]
[426805445,1782843041000,-233.24553741,0.00026161,2]
[426805446,1782843041000,-649.54516942,0.00026161,2]
[426805444,1782843041000,-669.11972809,0.00026161,2]
[426805447,1782843041000,-733.42734959,0.00026161,2]
[426805449,1782843041000,-514.14105661,0.00026161,2]
[426805458,1782843041000,-5000.0,0.00026209,2]
[426805450,1782843041000,-627.59154469,0.00026161,2]
[426805461,1782843041000,-599.19028157,0.00026283,2]
[426805456,1782843041000,-5000.0,0.00026209,2]
[426805460,1782843041000,-704.02962928,0.00026283,2]
[426805459,1782843041000,-591.13584005,0.00026283,2]
[426805453,1782843041000,-594.74917942,0.00026161,2]
[426805451,1782843041000,-407.29503795,0.00026161,2]
[426805452,1782843041000,-578.90594269,0.00026161,2]
[426805454,1782843041000,-5460.50768673,0.00026209,2]
[426805457,1782843041000,-5000.0,0.00026209,2]
[426805455,1782843041000,-5000.0,0.00026209,2]
[426805402,1782843041000,-889.96791455,0.00026161,2]
[426805426,1782843041000,-758.43641845,0.00026161,2]
[426805435,1782843041000,-438.76165313,0.00026161,2]
[426805440,1782843041000,-724.71232292,0.00026161,2]
[426805433,1782843041000,-655.09305154,0.00026161,2]
[426805403,1782843041000,-194.15817916,0.00026161,2]
[426805404,1782843041000,-454.29292272,0.00026161,2]
[426805407,1782843041000,-545.77318014,0.00026161,2]
[426805436,1782843041000,-439.89417369,0.00026161,2]
[426805405,1782843041000,-664.28964328,0.00026161,2]
[426805406,1782843041000,-313.63477408,0.00026161,2]
[426805462,1782843041000,-439.24580139,0.00026283,2]
[426805408,1782843041000,-878.48675459,0.00026161,2]
[426805412,1782843041000,-324.05764555,0.00026161,2]
[426805413,1782843041000,-564.66771239,0.00026161,2]
[426805415,1782843041000,-421.44617728,0.00026161,2]
[426805416,1782843041000,-474.88859454,0.00026161,2]
[426805414,1782843041000,-486.05525277,0.00026161,2]
[426805417,1782843041000,-1009.1756379,0.00026161,2]
[426805410,1782843041000,-679.33272034,0.00026161,2]
[426805422,1782843041000,-164.42099268,0.00026161,2]
[426805418,1782843041000,-361.51368133,0.00026161,2]
[426805431,1782843041000,-644.44037825,0.00026161,2]
[426805424,1782843041000,-209.96484872,0.00026161,2]
[426805434,1782843041000,-216.05795891,0.00026161,2]
[426805429,1782843041000,-619.32504644,0.00026161,2]
[426805430,1782843041000,-720.37098081,0.00026161,2]
[426805432,1782843041000,-407.10233529,0.00026161,2]
[426805421,1782843041000,-674.83063804,0.00026161,2]
[426805419,1782843041000,-1171.78213449,0.00026161,2]
[426805420,1782843041000,-302.61139661,0.00026161,2]
[426805423,1782843041000,-174.24266354,0.00026161,2]
[426805425,1782843041000,-676.05392492,0.00026161,2]
[426805482,1782843042000,-882.97830074,0.00026718,2]
[426805474,1782843042000,-379.94579465,0.00026397,2]
[426805484,1782843042000,-838.60224247,0.00026718,2]
[426805480,1782843042000,-852.54661503,0.00026718,2]
[426805478,1782843042000,-280.0,0.00026521,2]
[426805487,1782843042000,-1112.45989319,0.00026718,2]
[426805486,1782843042000,-1196.12941118,0.00026718,2]
[426805475,1782843042000,-349.74587134,0.00026397,2]
[426805476,1782843042000,-155.04098883,0.0002646,2]
[426805471,1782843042000,-1072.449619,0.00026384,2]
[426805467,1782843042000,-166.07211996,0.00026283,2]
[426805463,1782843042000,-750.807906,0.00026283,2]
[426805472,1782843042000,-1072.449619,0.00026384,2]
[426805473,1782843042000,-1072.449619,0.00026384,2]
[426805469,1782843042000,-659.43533154,0.00026283,2]
[426805466,1782843042000,-793.5462996,0.00026283,2]
[426805464,1782843042000,-489.72817806,0.00026283,2]
[426805468,1782843042000,-416.83216345,0.00026283,2]
[426805465,1782843042000,-160.41789385,0.00026283,2]
[426805477,1782843042000,-21669.33108996,0.000265,2]
[426805470,1782843042000,-1072.449619,0.00026384,2]
[426805479,1782843042000,-1744.41,0.00026678,2]
[426805481,1782843042000,-846.28644476,0.00026718,2]
[426805505,1782843042000,-4561346.0460254,0.000268,2]
[426805507,1782843042000,-3167.79878712,0.000268,2]
[426805508,1782843042000,-750.23360679,0.000268,2]
[426805506,1782843042000,-1682.20121288,0.000268,2]
[426805504,1782843042000,-375.18784603,0.00026799,10]
[426805503,1782843042000,-151.0,0.00026797,7]
[426805502,1782843042000,-151.0,0.00026797,7]
[426805501,1782843042000,-811.93146178,0.00026718,2]
[426805499,1782843042000,-905.89040365,0.00026718,2]
[426805489,1782843042000,-903.64378093,0.00026718,2]
[426805495,1782843042000,-774.15630805,0.00026718,2]
[426805483,1782843042000,-843.47832539,0.00026718,2]
[426805492,1782843042000,-843.53829755,0.00026718,2]
[426805497,1782843042000,-898.10955714,0.00026718,2]
[426805496,1782843042000,-900.46372601,0.00026718,2]
[426805494,1782843042000,-948.04552306,0.00026718,2]
[426805498,1782843042000,-1017.59382623,0.00026718,2]
[426805491,1782843042000,-1464.72766811,0.00026718,2]
[426805490,1782843042000,-1261.46954737,0.00026718,2]
[426805485,1782843042000,-1343.77678271,0.00026718,2]
[426805493,1782843042000,-857.79553291,0.00026718,2]
[426805488,1782843042000,-830.3620541,0.00026718,2]
[426805500,1782843042000,-851.10621415,0.00026718,2]
[426805520,1782843043000,-475.3451129,0.000161,2]
[426805519,1782843043000,-475.3451129,0.00016,2]
[426805523,1782843043000,-10786.1245631,0.000268,2]
[426805521,1782843043000,-161.21,0.00024658,2]
[426805525,1782843043000,-790.70620023,0.000268,2]
[426805524,1782843043000,-7625.8003797,0.000268,2]
[426805526,1782843043000,-1361.39009554,0.000268,2]
[426805537,1782843043000,-5846.21174365,0.000268,2]
[426805522,1782843043000,-55.7897742,0.000268,2]
[426805573,1782843046000,-166.25957906,0.000267,5]
[426805572,1782843046000,-7563.98558431,0.000268,2]
[426805571,1782843046000,-935.0,0.00025127,2]
[426805574,1782843046000,-629.80042086,0.000268,2]
[426805577,1782843095000,10000.0,0.00030137,30]
[426805580,1782843139000,10000.0,0.00030137,30]
[426805581,1782843155000,10000.0,0.00030137,30]
[426805582,1782843264000,155.0,0.00028621,30]
[426805583,1782843266000,155.0,0.00029621,30]
[426805584,1782843298000,157.0,0.00028621,30]
[426805585,1782843299000,157.0,0.00029621,30]
[426805586,1782843361000,1751.0682,0.000267,120]
[426805589,1782843397000,166.66,0.00023037,30]
[426805588,1782843397000,166.66,0.00022598,30]
[426805587,1782843397000,166.66,0.00022159,30]
[426805590,1782843408000,154.0,0.00028621,30]
[426805591,1782843409000,154.0,0.00029621,30]
[426805592,1782843507000,301.0,0.00028621,30]
[426805593,1782843508000,301.0,0.00029621,30]
[426805598,1782843963000,903.91,0.00030137,30]
[426805599,1782844193000,6328.65133204,0.00030137,120]
[426805600,1782844195000,166.66,0.0002204,30]
[426805629,1782844232000,-500.0,0.00016336,2]
[426805622,1782844232000,-600.0,0.00015318,2]
[426805625,1782844232000,-500.0,0.00016336,2]
[426805628,1782844232000,-500.0,0.00016336,2]
[426805630,1782844232000,-476.18964642,0.00016336,2]
[426805634,1782844232000,-500.0,0.00016437,2]
[426805626,1782844232000,-500.0,0.00016336,2]
[426805632,1782844232000,-1103.9928,0.00016338,2]
[426805627,1782844232000,-500.0,0.00016336,2]
[426805638,1782844232000,-500.0,0.00016437,2]
[426805620,1782844232000,-250.0,0.00015318,2]
[426805621,1782844232000,-250.0,0.00015318,2]
[426805633,1782844232000,-228.1583374,0.00016437,2]
[426805616,1782844232000,-192.026232,0.00014,2]
[426805618,1782844232000,-584.14093567,0.00014999,2]
[426805615,1782844232000,-180.11623247,0.00013978,2]
[426805617,1782844232000,-500.0,0.00014999,2]
[426805614,1782844232000,-189.00281813,0.00013963,2]
[426805624,1782844232000,-172.45112252,0.000162,2]
[426805623,1782844232000,-600.0,0.00015328,2]
[426805613,1782844232000,-600.0,0.00013944,2]
[426805609,1782844232000,-179.52253363,0.000139,2]
[426805610,1782844232000,-255.44742417,0.00013917,2]
[426805611,1782844232000,-150.0,0.00013934,2]
[426805619,1782844232000,-300.0,0.0001529,2]
[426805637,1782844232000,-354.38936225,0.00016437,2]
[426805612,1782844232000,-600.0,0.00013939,2]
[426805635,1782844232000,-164.02527044,0.00016437,2]
[426805631,1782844232000,-429.44451098,0.00016336,2]
[426805670,1782844232000,-151.348429,0.00016438,2]
[426805668,1782844232000,-348.651571,0.00016438,2]
[426805674,1782844232000,-162.411571,0.00016438,2]
[426805666,1782844232000,-500.0,0.00016438,2]
[426805664,1782844232000,-500.0,0.00016438,2]
[426805672,1782844232000,-500.0,0.00016438,2]
[426805659,1782844232000,-500.0,0.00016438,2]
[426805662,1782844232000,-500.0,0.00016438,2]
[426805660,1782844232000,-500.0,0.00016438,2]
[426805657,1782844232000,-500.0,0.00016438,2]
[426805655,1782844232000,-500.0,0.00016438,2]
[426805644,1782844232000,-500.0,0.00016438,2]
[426805653,1782844232000,-4.59484452,0.00016438,2]
[426805649,1782844232000,-500.0,0.00016438,2]
[426805647,1782844232000,-500.0,0.00016438,2]
[426805640,1782844232000,-150.0,0.00016437,2]
[426805650,1782844232000,-500.0,0.00016438,2]
[426805651,1782844232000,-495.40515548,0.00016438,2]
[426805639,1782844232000,-500.0,0.00016437,2]
[426805642,1782844232000,-500.0,0.00016438,2]
[426805636,1782844232000,-226.24595307,0.00016437,2]
[426805643,1782844232000,-500.0,0.00016438,2]
[426805648,1782844232000,-500.0,0.00016438,2]
[426805646,1782844232000,-500.0,0.00016438,2]
[426805645,1782844232000,-500.0,0.00016438,2]
[426805641,1782844232000,-500.0,0.00016438,2]
[426805741,1782844238000,-500.0,0.00016438,2]
[426805742,1782844238000,-500.0,0.00016438,2]
[426805739,1782844238000,-500.0,0.00016438,2]
[426805746,1782844238000,-521.0682419,0.00016438,2]
[426805748,1782844238000,-500.0,0.00016438,2]
[426805750,1782844238000,-500.0,0.00016438,2]
[426805749,1782844238000,-500.0,0.00016438,2]
[426805747,1782844238000,-500.0,0.00016438,2]
[426805744,1782844238000,-500.0,0.00016438,2]
[426805745,1782844238000,-500.0,0.00016438,2]
[426805754,1782844238000,-500.0,0.00016438,2]
[426805751,1782844238000,-500.0,0.00016438,2]
[426805737,1782844238000,-500.0,0.00016438,2]
[426805726,1782844238000,-52.25095523,0.00016438,2]
[426805740,1782844238000,-500.0,0.00016438,2]
[426805736,1782844238000,-500.0,0.00016438,2]
[426805735,1782844238000,-140.53954781,0.00016438,2]
[426805734,1782844238000,-340.05749686,0.00016438,2]
[426805732,1782844238000,-500.0,0.00016438,2]
[426805733,1782844238000,-19.40295533,0.00016438,2]
[426805731,1782844238000,-500.0,0.00016438,2]
[426805730,1782844238000,-500.0,0.00016438,2]
[426805728,1782844238000,-500.0,0.00016438,2]
[426805729,1782844238000,-500.0,0.00016438,2]
[426805727,1782844238000,-447.74904477,0.00016438,2]
[426805725,1782844238000,-337.588429,0.00016438,2]
[426805743,1782844238000,-500.0,0.00016438,2]
[426805738,1782844238000,-500.0,0.00016438,2]
[426805753,1782844238000,-500.0,0.00016438,2]
[426805755,1782844238000,-500.0,0.00016438,2]
[426805756,1782844238000,-500.0,0.00016438,2]
[426805784,1782844238000,-500.0,0.00016438,2]
[426805785,1782844238000,-500.0,0.00016438,2]
[426805783,1782844238000,-500.0,0.00016438,2]
[426805786,1782844238000,-304.83072151,0.00016438,2]
[426805752,1782844238000,-500.0,0.00016438,2]
[426805782,1782844238000,-500.0,0.00016438,2]
[426805775,1782844238000,-500.0,0.00016438,2]
[426805772,1782844238000,-500.0,0.00016438,2]
[426805777,1782844238000,-500.0,0.00016438,2]
[426805771,1782844238000,-500.0,0.00016438,2]
[426805770,1782844238000,-500.0,0.00016438,2]
[426805778,1782844238000,-500.0,0.00016438,2]
[426805773,1782844238000,-500.0,0.00016438,2]
[426805774,1782844238000,-500.0,0.00016438,2]
[426805780,1782844238000,-500.0,0.00016438,2]
[426805776,1782844238000,-500.0,0.00016438,2]
[426805767,1782844238000,-500.0,0.00016438,2]
[426805759,1782844238000,-500.0,0.00016438,2]
[426805763,1782844238000,-500.0,0.00016438,2]
[426805766,1782844238000,-500.0,0.00016438,2]
[426805762,1782844238000,-500.0,0.00016438,2]
[426805758,1782844238000,-500.0,0.00016438,2]
[426805764,1782844238000,-500.0,0.00016438,2]
[426805757,1782844238000,-500.0,0.00016438,2]
[426805765,1782844238000,-500.0,0.00016438,2]
[426805760,1782844238000,-500.0,0.00016438,2]
[426805768,1782844238000,-500.0,0.00016438,2]
[426805769,1782844238000,-500.0,0.00016438,2]
[426805761,1782844238000,-500.0,0.00016438,2]
[426805798,1782844240000,-373.84939533,0.00016438,2]
[426805797,1782844240000,-197.2770376,0.00016438,2]
[426805796,1782844240000,-302.7229624,0.00016438,2]
[426805795,1782844240000,-195.16927849,0.00016438,2]
[426805823,1782844243000,-171.64,0.00016712,2]
[426805819,1782844243000,-500.0,0.00016438,2]
[426805821,1782844243000,-150.98429466,0.00016438,2]
[426805820,1782844243000,-500.0,0.00016438,2]
[426805824,1782844243000,-152.0,0.00018269,2]
[426805822,1782844243000,-2023.68825043,0.00016706,2]
[426805825,1782844243000,-150.00000001,0.00018934,2]
[426805812,1782844243000,-500.0,0.00016438,2]
[426805818,1782844243000,-500.0,0.00016438,2]
[426805816,1782844243000,-500.0,0.00016438,2]
[426805814,1782844243000,-500.0,0.00016438,2]
[426805815,1782844243000,-500.0,0.00016438,2]
[426805813,1782844243000,-500.0,0.00016438,2]
[426805811,1782844243000,-500.0,0.00016438,2]
[426805810,1782844243000,-126.15060467,0.00016438,2]
[426805826,1782844243000,-151.0,0.00019089,2]
[426805817,1782844243000,-576.57595566,0.00016438,2]
[426805830,1782844243000,-165.7691721,0.0002,2]
[426805834,1782844243000,-475.3451129,0.00020308,2]
[426805827,1782844243000,-736.64287127,0.00019345,2]
[426805846,1782844243000,-790.70620023,0.00020951,2]
[426805842,1782844243000,-166.66,0.00020781,2]
[426805844,1782844243000,-150.0,0.00020904,2]
[426805845,1782844243000,-570.41501601,0.00020951,2]
[426805843,1782844243000,-210.17,0.00020798,2]
[426805839,1782844243000,-196.15,0.00020597,2]
[426805838,1782844243000,-475.3451129,0.00020408,2]
[426805841,1782844243000,-5548.92,0.00020699,2]
[426805847,1782844243000,-1361.39009554,0.00020951,2]
[426805837,1782844243000,-108.14025079,0.00020361,2]
[426805840,1782844243000,-200.0,0.00020598,2]
[426805828,1782844243000,-154.58316497,0.000194,2]
[426805832,1782844243000,-150.99,0.00020145,2]
[426805829,1782844243000,-166.66,0.00019941,2]
[426805833,1782844243000,-357.95,0.00020308,2]
[426805831,1782844243000,-301.0,0.0002,2]
[426805835,1782844243000,-216.62538722,0.0002032,2]
[426805836,1782844243000,-58.51974921,0.00020361,2]
[426805857,1782844246000,-1134.28,0.00020951,2]
[426805872,1782844273000,1152.70477088,0.00025507,120]
[426805871,1782844273000,3000.0,0.00025507,120]
[426805873,1782844299000,264.25,0.00028652,30]